bitfinex-derivatives/quotes_ETHF0:USTF0_20230402
["timestamp","ask_amount","ask_price","bid_price","bid_amount"]
[1680457061108,2.103,1801.2,1801.1,0.59163166]
[1680457061310,2.103,1801.2,1800.8,1.97536439]
[1680457061501,3.2078,1801.0,1800.8,1.97536439]
[1680457061806,3.2078,1801.0,1800.8,1.109]
[1680457062006,3.2078,1801.0,1800.9,1.102]
[1680457062207,3.2078,1801.0,1800.8,1.109]
[1680457062610,3.2078,1801.0,1800.9,1.102]
[1680457065309,3.78910839,1801.0,1800.9,1.102]
[1680457067222,3.2078,1801.0,1800.9,1.102]
[1680457068918,3.2078,1801.0,1800.8,1.103]
[1680457069114,3.2078,1801.0,1800.9,2.109]
[1680457069622,3.2078,1801.0,1800.9,1.109]
[1680457072719,18.2921,1801.2,1800.9,2.217]
[1680457072913,18.2921,1801.2,1801.1,1.109]
[1680457074520,18.2921,1801.2,1801.1,1.64843524]
[1680457074928,18.2921,1801.2,1801.1,1.64943524]
[1680457075725,13.86597925,1801.2,1801.1,2.75643524]
[1680457075924,0.002,1801.5,1801.3,5.564]
[1680457076123,0.58130839,1801.8,1801.4,2.22]
[1680457076318,0.58130839,1801.8,1801.7,1.11]
[1680457076615,3.78910839,1801.9,1801.7,1.11]
[1680457076818,3.78910839,1801.9,1801.8,1.11]
[1680457077226,0.58130839,1802.0,1801.8,2.22]
[1680457077421,0.58130839,1802.0,1801.9,1.11]
[1680457077926,1.45271352,1802.1,1801.9,1.11]
[1680457078120,0.87140513,1802.1,1802.0,1.11]
[1680457078720,1.45097273,1802.1,1802.0,1.11]
[1680457078921,0.5795676,1802.1,1802.0,1.11]
[1680457082023,1.45097273,1802.1,1801.7,1.0]
[1680457082325,3.2078,1801.8,1801.3,3.77108795]
[1680457082529,3.2078,1801.8,1801.3,0.56328795]
[1680457082729,3.2078,1801.8,1801.6,1.11]
[1680457083031,1.0,1801.7,1801.5,1.11]
[1680457083331,1.0,1801.7,1801.6,1.11]
[1680457083527,3.7873676,1801.8,1801.6,1.11]
[1680457083730,3.7873676,1801.8,1801.7,1.11]
[1680457085030,0.5795676,1801.8,1801.7,1.11]
[1680457085231,0.5795676,1801.9,1801.8,1.107]
[1680457085430,0.5795676,1801.9,1801.8,2.216]
[1680457087837,3.7873676,1802.0,1801.8,2.216]
[1680457088132,3.7873676,1802.0,1801.9,1.11]
[1680457089634,3.7873676,1802.0,1801.9,1.91603019]
[1680457091236,0.5795676,1802.1,1801.9,1.91603019]
[1680457091439,0.5795676,1802.1,1802.0,1.109]
[1680457092232,1.45097273,1802.1,1802.0,1.109]
[1680457093242,1.45079143,1802.1,1802.0,1.109]
[1680457095135,1.45079143,1802.1,1802.0,1.11]
[1680457096849,0.5793863,1802.1,1802.0,1.11]
[1680457097347,0.87140513,1802.3,1802.0,5.4278]
[1680457097550,0.57918965,1802.3,1802.2,5.4278]
[1680457097750,0.57918965,1802.5,1802.2,5.4278]
[1680457097955,0.57918965,1802.5,1802.4,1.11]
[1680457098252,3.78698965,1802.6,1802.4,1.11]
[1680457098443,3.2078,1802.6,1802.5,1.11]
[1680457099040,3.2078,1802.6,1802.5,2.219]
[1680457099456,1.45059478,1802.7,1802.5,1.109]
[1680457099643,0.57918965,1802.7,1802.6,1.11]
[1680457099843,0.57918965,1802.7,1802.6,1.109]
[1680457100356,4.65839478,1802.8,1802.6,1.11]
[1680457100548,3.2078,1802.8,1802.7,2.219]
[1680457100747,0.57918965,1802.9,1802.7,2.109]
[1680457101053,0.57918965,1802.9,1802.8,1.11]
[1680457101246,0.57918965,1802.9,1802.7,1.11]
[1680457101450,1.68318965,1802.9,1802.6,1.0]
[1680457101748,1.68318965,1802.9,1802.5,1.66910027]
[1680457101749,3.2078,1802.8,1802.7,1.11]
[1680457102257,1.57918965,1802.9,1802.7,1.11]
[1680457102452,4.78698965,1802.9,1802.8,1.11]
[1680457102650,4.78698965,1802.9,1802.8,0.99900001]
[1680457103051,4.78698965,1802.9,1802.7,1.11]
[1680457103450,4.78698965,1802.9,1802.5,1.55910027]
[1680457103451,1.60059478,1803.0,1802.8,1.11]
[1680457103765,1.59906817,1803.0,1802.7,1.11]
[1680457104061,0.57766304,1802.9,1802.7,1.11]
[1680457104251,0.57766304,1802.9,1802.8,1.11]
[1680457104556,1.0,1802.9,1802.8,1.01572793]
[1680457104956,1.57766304,1802.9,1802.6,1.11]
[1680457105154,3.2078,1802.8,1802.6,1.109]
[1680457105456,1.0,1802.7,1802.6,1.109]
[1680457105661,3.2078,1802.8,1802.6,1.109]
[1680457105852,3.2078,1802.8,1802.4,1.109]
[1680457106251,0.57766304,1802.9,1802.6,1.109]
[1680457106466,4.80686817,1803.0,1802.6,1.109]
[1680457106760,0.57766304,1802.9,1802.6,1.109]
[1680457106959,4.80686817,1803.0,1802.6,1.109]
[1680457107161,0.57766304,1802.9,1802.6,1.109]
[1680457107357,1.57766304,1802.9,1802.6,1.109]
[1680457107562,0.57766304,1802.9,1802.6,1.109]
[1680457108359,3.93546304,1803.0,1802.8,1.109]
[1680457108760,3.93546304,1803.0,1802.7,1.109]
[1680457108964,3.3578,1803.0,1802.9,1.109]
[1680457109167,3.3578,1803.0,1802.7,1.109]
[1680457109460,3.2078,1802.8,1802.7,1.109]
[1680457109867,1.0,1802.9,1802.7,1.109]
[1680457110463,3.2078,1802.8,1802.7,1.109]
[1680457111151,3.2078,1802.8,1802.4,1.104]
[1680457111969,3.2078,1802.6,1802.4,1.104]
[1680457112162,3.2078,1802.6,1802.5,1.109]
[1680457112967,3.2078,1802.6,1802.4,1.109]
[1680457116564,3.78546304,1802.8,1802.5,1.109]
[1680457116765,0.57766304,1802.7,1802.5,1.109]
[1680457116970,1.57766304,1802.7,1802.5,1.109]
[1680457117171,3.2078,1802.6,1802.5,1.109]
[1680457117375,0.57766304,1802.7,1802.5,1.109]
[1680457117560,4.65686817,1802.8,1802.5,1.109]
[1680457118171,3.2078,1802.6,1802.5,1.109]
[1680457118372,4.65686817,1802.8,1802.6,1.107]
[1680457118567,4.65686817,1802.8,1802.7,1.109]
[1680457118771,3.78546304,1802.8,1802.7,1.109]
[1680457118971,4.07920513,1802.8,1802.7,1.109]
[1680457119276,0.87140513,1802.8,1802.7,1.109]
[1680457119674,0.87140513,1802.8,1802.7,2.18013193]
[1680457120174,4.07920513,1802.8,1802.7,1.07113193]
[1680457120372,4.07920513,1802.8,1802.6,1.107]
[1680457120573,0.57873197,1802.7,1802.6,1.107]
[1680457120874,1.57873197,1802.7,1802.6,2.216]
[1680457121673,1.87140513,1802.7,1802.4,1.109]
[1680457121873,3.78657689,1802.5,1802.4,1.109]
[1680457122296,4.65798202,1802.5,1802.4,1.109]
[1680457122670,3.78657689,1802.5,1802.4,1.109]
[1680457122975,4.65798202,1802.5,1802.4,1.109]
[1680457124378,4.65841273,1802.5,1802.4,1.109]
[1680457124772,3.7870076,1802.5,1802.4,1.109]
[1680457124973,4.65841273,1802.5,1802.4,1.109]
[1680457126076,0.5792076,1802.5,1802.4,1.109]
[1680457126280,0.5792076,1802.6,1802.4,1.109]
[1680457126482,1.45061273,1802.6,1802.3,1.0]
[1680457126984,0.5792076,1802.6,1802.3,1.0]
[1680457127584,0.5792076,1802.6,1802.2,8.75839172]
[1680457127789,0.5792076,1802.6,1802.3,1.0]
[1680457128671,0.5792076,1802.6,1802.2,8.75839172]
[1680457128878,0.5792076,1802.6,1802.3,1.0]
[1680457129884,0.5792076,1802.6,1802.2,14.32239172]
[1680457130086,0.5792076,1802.6,1802.3,1.0]
[1680457130783,0.5792076,1802.6,1802.2,15.94724331]
[1680457131481,0.5792076,1802.6,1802.2,10.38324331]
[1680457131974,0.5792076,1802.6,1802.2,15.94724331]
[1680457132175,0.5792076,1802.6,1802.5,1.104]
[1680457134572,0.5792076,1802.6,1802.5,2.06817939]
[1680457134573,1.45061273,1802.6,1802.5,2.06817939]
[1680457134775,0.87140513,1802.6,1802.5,2.06817939]
[1680457134975,0.57995823,1802.6,1802.5,2.06817939]
[1680457136584,0.87140513,1802.6,1802.5,2.06817939]
[1680457138179,4.07821567,1802.6,1802.5,2.06817939]
[1680457138381,4.37032564,1802.6,1802.5,2.06817939]
[1680457138580,1.16252564,1802.6,1802.5,2.06817939]
[1680457138788,4.37032564,1802.6,1802.5,2.06817939]
[1680457140587,4.66095705,1802.6,1802.5,2.06817939]
[1680457142282,3.89578286,1802.6,1802.5,2.06817939]
[1680457142481,0.68798286,1802.6,1802.5,2.06817939]
[1680457142681,0.68798286,1802.7,1802.5,2.06817939]
[1680457142981,3.89578286,1802.6,1802.5,2.06817939]
[1680457143986,1.45426883,1802.6,1802.5,2.06817939]
[1680457147693,2.14220008,1802.6,1802.5,2.06817939]
[1680457148191,1.45426883,1802.6,1802.5,2.06817939]
[1680457150595,5.35000008,1802.6,1802.5,2.06817939]
[1680457151093,5.35000008,1802.6,1802.5,2.07217939]
[1680457157996,2.14220008,1802.6,1802.5,2.07317939]
[1680457158202,1.45426883,1802.6,1802.5,2.07317939]
[1680457159908,1.45426883,1802.7,1802.5,2.07317939]
[1680457160108,1.45426883,1802.7,1802.6,1.108]
[1680457160404,0.68791293,1802.7,1802.6,2.12152812]
[1680457161000,1.68791293,1802.8,1802.6,2.12152812]
[1680457161201,0.68791293,1802.7,1802.6,2.12152812]
[1680457161407,3.89571293,1802.7,1802.6,2.12152812]
[1680457164710,5.35016722,1802.7,1802.6,2.12152812]
[1680457164909,3.89571293,1802.7,1802.6,2.12152812]
[1680457167411,1.45442952,1802.8,1802.6,3.23052812]
[1680457167613,1.45442952,1802.8,1802.7,1.109]
[1680457167909,1.45442952,1802.8,1802.7,2.14534913]
[1680457168313,1.456e-05,1802.9,1802.7,8.81834913]
[1680457168511,5.87610844,1803.2,1802.8,11.9898]
[1680457168707,9.0935785,1803.3,1803.1,1.109]
[1680457168901,9.0935785,1803.3,1803.2,1.109]
[1680457168902,7.342516,1803.3,1803.2,1.109]
[1680457169206,20.65028996,1803.3,1803.2,1.109]
[1680457169406,7.342516,1803.3,1803.2,1.109]
[1680457177324,8.21220498,1803.3,1803.2,1.109]
[1680457179524,9.21220498,1803.3,1803.2,2.43098043]
[1680457180027,1.0,1803.3,1803.2,1.32198043]
[1680457180230,1.0,1803.3,1803.2,1.18978239]
[1680457180624,1.0,1803.3,1803.0,1.109]
[1680457180925,4.65653408,1803.1,1803.0,1.109]
[1680457181125,4.07704265,1803.1,1803.0,1.109]
[1680457181324,4.65653685,1803.1,1803.0,1.109]
[1680457181528,4.07704265,1803.1,1803.0,1.109]
[1680457182131,4.07704265,1803.1,1802.9,1.109]
[1680457182326,4.65654775,1803.1,1802.9,1.109]
[1680457183439,0.5795051,1803.0,1802.9,1.109]
[1680457184622,4.65654775,1803.1,1802.9,1.109]
[1680457184825,0.5795051,1803.0,1802.9,1.109]
[1680457185021,4.65654775,1803.1,1802.9,1.109]
[1680457185233,0.5795051,1803.0,1802.9,1.109]
[1680457187835,0.5795051,1803.0,1802.9,2.06553784]
[1680457190837,0.5795051,1803.1,1803.0,1.106]
[1680457191041,0.5795051,1803.1,1803.0,2.208]
[1680457192534,0.5795051,1803.1,1803.0,6.4158]
[1680457192832,0.5795051,1803.3,1803.0,5.4158]
[1680457193036,0.5795051,1803.3,1803.2,1.107]
[1680457194635,0.5795051,1803.3,1803.2,2.06615904]
[1680457195344,0.5795051,1803.3,1803.2,2.06315904]
[1680457203543,0.86924265,1803.3,1803.2,2.06315904]
[1680457208843,1.86924265,1803.3,1803.2,0.95915904]
[1680457209548,2.15899369,1803.3,1803.2,0.95915904]
[1680457210256,1.0,1803.3,1803.2,0.95915904]
[1680457210458,2.44883871,1803.3,1803.2,0.95915904]
[1680457211559,3.13657593,1803.3,1803.2,0.95915904]
[1680457212663,2.13657593,1803.3,1803.2,0.95915904]
[1680457212958,2.13655462,1803.3,1803.2,2.06515904]
[1680457215253,0.68771591,1803.3,1803.2,2.06515904]
[1680457216360,1.68771591,1803.3,1803.2,2.06515904]
[1680457216958,0.68771591,1803.3,1803.2,2.06515904]
[1680457217165,0.68771591,1803.3,1803.2,0.95915904]
[1680457217668,1.68771591,1803.3,1803.2,0.95915904]
[1680457220365,1.68771591,1803.3,1803.1,1.1]
[1680457220569,5.34850161,1803.2,1803.1,1.1]
[1680457220859,5.34850823,1803.2,1803.1,1.1]
[1680457221065,5.34850762,1803.2,1803.1,1.1]
[1680457222061,5.34850762,1803.2,1803.1,1.097]
[1680457222961,5.34850762,1803.2,1803.1,1.82120563]
[1680457223156,2.14070762,1803.2,1803.1,1.82120563]
[1680457223360,0.8716555,1803.2,1803.1,2.92920563]
[1680457223754,0.8716555,1803.2,1803.1,3.92920563]
[1680457224462,0.8716555,1803.2,1803.1,2.92920563]
[1680457227364,0.8716555,1803.2,1803.1,1.82120563]
[1680457231467,1.1622586,1803.3,1803.1,1.82120563]
[1680457231669,1.1622586,1803.3,1803.2,1.108]
[1680457233463,4.66079171,1803.4,1803.2,1.108]
[1680457233662,4.66079171,1803.4,1803.3,1.108]
[1680457233868,5.34848464,1803.4,1803.3,1.108]
[1680457234768,5.34848464,1803.4,1803.1,1.82220563]
[1680457234967,1.1623496,1803.2,1803.1,1.82220563]
[1680457235370,4.3701496,1803.2,1803.1,1.82220563]
[1680457235571,3.2078,1803.2,1803.1,1.82220563]
[1680457235765,4.660737,1803.2,1803.1,1.82220563]
[1680457235967,3.2078,1803.2,1803.1,1.82220563]
[1680457237071,4.37034639,1803.2,1803.1,1.82220563]
[1680457237969,4.37034639,1803.2,1803.1,2.10981739]
[1680457242074,4.37034639,1803.2,1803.1,1.01181739]
[1680457247785,4.660737,1803.2,1803.1,1.01181739]
[1680457247976,5.34846418,1803.2,1803.1,1.01181739]
[1680457248177,5.34846418,1803.2,1803.0,1.102]
[1680457248481,0.87202904,1803.1,1803.0,1.102]
[1680457248683,1.1627078,1803.1,1803.0,1.102]
[1680457249181,4.3705078,1803.2,1803.0,1.102]
[1680457249584,1.1627078,1803.1,1803.0,1.102]
[1680457250883,4.3705078,1803.2,1803.0,1.102]
[1680457252086,4.3705078,1803.2,1803.1,1.108]
[1680457252683,3.2078,1803.2,1803.1,1.108]
[1680457252880,3.2078,1803.2,1803.1,2.06578524]
[1680457254288,4.660737,1803.2,1803.1,2.06120433]
[1680457254684,4.660737,1803.2,1803.1,0.95778524]
[1680457254685,5.34847139,1803.2,1803.1,0.95778524]
[1680457254888,5.34847139,1803.2,1802.9,1.68443726]
[1680457255188,0.87213621,1803.0,1802.9,1.68443726]
[1680457255488,4.07993621,1803.0,1802.9,1.68443726]
[1680457256487,4.07993621,1803.0,1802.9,1.68543726]
[1680457262991,4.37064828,1803.0,1802.9,1.109]
[1680457267794,1.16284828,1803.0,1802.9,1.109]
[1680457267996,0.87220556,1803.0,1802.9,2.64308845]
[1680457268196,0.58144451,1803.0,1802.9,2.93301558]
[1680457268393,1.45365007,1803.1,1803.0,1.1]
[1680457268602,0.58144451,1803.1,1803.0,3.07309046]
[1680457269295,0.58144451,1803.1,1803.0,4.07309046]
[1680457270297,0.58144451,1803.1,1803.0,3.07309046]
[1680457270894,1.45365007,1803.1,1803.0,3.07309046]
[1680457272491,0.58144451,1803.1,1803.0,3.07309046]
[1680457273711,0.58144451,1803.2,1803.0,12.14726238]
[1680457274006,0.58144451,1803.2,1803.1,2.97268405]
[1680457274797,1.45365007,1803.3,1803.1,2.97268405]
[1680457275105,0.87220556,1803.3,1803.2,5.89230308]
[1680457275503,0.87220556,1803.3,1803.2,4.89230308]
[1680457276207,1.45337954,1803.3,1803.2,4.89230308]
[1680457276698,0.58117398,1803.3,1803.2,4.89230308]
[1680457279607,0.58117398,1803.3,1803.2,4.3168]
[1680457281417,0.58117398,1803.4,1803.2,4.89230308]
[1680457281618,0.58117398,1803.4,1803.3,1.109]
[1680457282016,0.58117398,1803.4,1803.3,2.209]
[1680457282617,1.45337954,1803.4,1803.3,2.209]
[1680457282817,0.58117398,1803.4,1803.3,2.209]
[1680457283018,0.58117398,1803.4,1803.3,3.24760626]
[1680457286420,0.58117398,1803.4,1803.3,2.14460626]
[1680457287223,1.45337954,1803.5,1803.3,2.14460626]
[1680457287522,1.45337954,1803.5,1803.4,1.108]
[1680457287912,0.58117398,1803.5,1803.4,1.108]
[1680457288726,0.58031838,1803.5,1803.4,4.3158]
[1680457289229,1.12869551,1803.6,1803.4,5.4228]
[1680457289524,1.12869551,1803.6,1803.5,1.108]
[1680457290630,0.58031838,1803.7,1803.6,1.107]
[1680457290828,1.45079594,1803.8,1803.6,5.4128]
[1680457291125,0.58031838,1803.8,1803.7,1.108]
[1680457294725,1.45079594,1803.9,1803.7,1.108]
[1680457295026,0.58031838,1803.9,1803.7,1.108]
[1680457296429,0.58031838,1803.9,1803.8,1.098]
[1680457296629,0.58031838,1803.9,1803.7,1.106]
[1680457297530,3.78811838,1803.9,1803.7,1.106]
[1680457297824,1.0,1803.8,1803.6,1.108]
[1680457298526,1.58031838,1803.8,1803.6,1.108]
[1680457298727,3.2078,1803.7,1803.6,1.108]
[1680457299322,3.78811838,1803.7,1803.6,1.108]
[1680457299518,1.0,1803.6,1803.4,1.098]
[1680457299723,1.0,1803.6,1803.2,1.108]
[1680457300025,3.2078,1803.3,1803.2,1.108]
[1680457310642,3.78811838,1803.3,1803.2,1.108]
[1680457312343,0.58031838,1803.3,1803.2,1.108]
[1680457312843,0.58031838,1803.3,1803.2,1.88790567]
[1680457318041,4.07827756,1803.3,1803.2,0.77990567]
[1680457318437,4.37064828,1803.3,1803.0,1.108]
[1680457318634,3.78837105,1803.1,1803.0,1.108]
[1680457321948,5.37064828,1803.1,1802.8,1.63206392]
[1680457322245,3.78831893,1802.9,1802.7,1.1]
[1680457322548,1.0,1802.8,1802.7,1.1]
[1680457322943,3.78831893,1802.9,1802.7,1.1]
[1680457323840,3.78831893,1802.9,1802.7,2.78398618]
[1680457326453,3.2078,1802.9,1802.7,3.33993617]
[1680457328055,3.2078,1802.9,1802.8,0.50292435]
[1680457328645,3.2078,1802.9,1802.4,2.68450308]
[1680457328646,1.0,1802.8,1802.3,1.68050308]
[1680457328852,3.2078,1802.6,1802.4,0.17275044]
[1680457329254,1.0,1802.5,1802.2,2.24462306]
[1680457329548,1.0,1802.5,1802.1,1.108]
[1680457329549,3.2078,1802.4,1802.1,1.108]
[1680457329847,3.2078,1802.2,1802.0,1.12647625]
[1680457330056,3.2078,1802.2,1801.9,1.68350308]
[1680457330443,4.3148,1802.2,1801.9,0.57550308]
[1680457330753,4.3148,1802.2,1801.8,1.108]
[1680457331253,3.2078,1802.0,1801.8,1.6720294]
[1680457334853,5.3108,1802.3,1801.8,1.6720294]
[1680457335158,3.2078,1802.3,1802.0,1.108]
[1680457336455,3.2078,1802.3,1802.1,0.12048021]
[1680457342062,4.3108,1802.3,1802.1,0.12048021]
[1680457342360,4.3108,1802.3,1801.9,1.108]
[1680457342659,3.2078,1802.1,1801.9,1.108]
[1680457342859,3.2078,1802.1,1802.0,0.12041328]
[1680457344861,3.2078,1802.1,1802.0,1.22541328]
[1680457345259,3.2078,1802.4,1802.0,1.22541328]
[1680457345867,3.2078,1802.4,1802.3,1.108]
[1680457346761,3.2078,1802.4,1802.3,1.109]
[1680457347366,0.55338241,1802.6,1802.3,1.109]
[1680457347552,4.3168,1802.7,1802.3,1.109]
[1680457348355,3.2078,1802.7,1802.4,1.099]
[1680457348553,3.2078,1802.7,1802.6,1.109]
[1680457348969,3.2078,1802.9,1802.5,1.1]
[1680457351565,3.2078,1802.9,1802.8,1.1]
[1680457352163,3.2078,1802.9,1802.6,1.104]
[1680457352962,3.2078,1802.9,1802.8,1.106]
[1680457353169,3.77012683,1803.1,1802.8,1.106]
[1680457358063,3.77012683,1803.1,1802.9,0.29893126]
[1680457358565,3.77012683,1803.1,1802.8,1.106]
[1680457360670,3.77012683,1803.1,1803.0,1.109]
[1680457373100,3.77012683,1803.1,1803.0,1.5882247]
[1680457374697,3.77012683,1803.1,1803.0,0.4792247]
[1680457374896,3.77012683,1803.1,1802.8,1.102]
[1680457384207,0.56232683,1803.1,1803.0,2.218]
[1680457384515,3.78750495,1803.3,1803.0,2.218]
[1680457384516,3.2078,1803.3,1803.0,2.218]
[1680457384712,3.2078,1803.3,1803.2,1.109]
[1680457386313,3.78750495,1803.5,1803.2,1.109]
[1680457387402,4.65706238,1803.5,1803.2,1.109]
[1680457388007,4.65706238,1803.5,1803.3,0.63139446]
[1680457389501,0.57970495,1803.4,1803.3,0.63139446]
[1680457389710,1.57970495,1803.4,1803.1,1.109]
[1680457389907,1.57970495,1803.4,1803.3,1.098]
[1680457390417,1.57970495,1803.4,1803.1,1.109]
[1680457390707,3.2078,1803.3,1803.0,1.102]
[1680457390910,3.2078,1803.1,1803.0,1.102]
[1680457392106,3.2078,1803.1,1802.9,1.098]
[1680457392509,1.0,1803.0,1802.7,1.68450308]
[1680457392709,1.57970495,1803.0,1802.7,1.68450308]
[1680457394014,3.2078,1802.9,1802.7,1.68450308]
[1680457394207,3.78750495,1802.9,1802.7,1.68450308]
[1680457396709,0.57970495,1802.9,1802.8,1.109]
[1680457397115,0.57970495,1802.9,1802.8,1.68450308]
[1680457397311,0.57970495,1802.9,1802.8,1.109]
[1680457397511,0.57970495,1802.9,1802.7,2.54818713]
[1680457398320,0.57970495,1802.9,1802.8,0.57550308]
[1680457403014,0.57970495,1802.9,1802.8,0.97591561]
[1680457413913,0.86955743,1802.9,1802.8,0.40041253]
[1680457414120,2.97855743,1802.9,1802.8,0.40041253]
[1680457414332,3.27184828,1802.9,1802.8,0.40041253]
[1680457414527,3.27184828,1802.9,1802.6,0.57550308]
[1680457414727,3.78909558,1802.7,1802.6,0.57550308]
[1680457418232,3.78909558,1802.7,1802.6,0.73905062]
[1680457420333,0.87194337,1802.8,1802.6,1.84405062]
[1680457420334,0.58129558,1802.8,1802.6,1.84405062]
[1680457421227,0.58129558,1802.8,1802.7,1.102]
[1680457425334,0.58129558,1802.8,1802.6,2.71173467]
[1680457425636,0.58129558,1802.8,1802.6,3.268933]
[1680457426439,0.58129558,1802.8,1802.7,1.105]
[1680457427124,0.58129558,1802.8,1802.7,1.68050308]
[1680457427536,0.58129558,1802.8,1802.7,1.105]
[1680457427738,0.58129558,1802.8,1802.7,1.68050308]
[1680457428942,0.58129558,1802.8,1802.7,0.57550308]
[1680457429238,0.58129558,1802.8,1802.6,3.268933]
[1680457432642,0.58129558,1802.8,1802.6,2.40524895]
[1680457433339,1.45323895,1802.8,1802.7,0.57550308]
[1680457433536,1.87194337,1802.8,1802.6,3.268933]
[1680457433749,3.78902642,1802.7,1802.6,2.54818713]
[1680457436351,3.78902642,1802.7,1802.6,1.97268405]
[1680457437146,3.78902642,1802.7,1802.6,0.86368405]
[1680457443663,0.58122642,1802.7,1802.6,1.96368405]
[1680457443861,0.58122642,1802.7,1802.6,2.26046238]
[1680457444160,1.45316979,1802.8,1802.6,3.26046238]
[1680457444370,1.45316979,1802.8,1802.7,0.8651375]
[1680457444854,0.87194337,1802.8,1802.7,0.8651375]
[1680457445056,1.45352274,1802.8,1802.7,0.8651375]
[1680457445254,1.45354115,1802.8,1802.7,0.8651375]
[1680457445657,0.58159778,1802.8,1802.7,0.8651375]
[1680457448060,0.58159778,1802.8,1802.7,1.02854906]
[1680457451362,1.45354115,1802.8,1802.7,1.02854906]
[1680457451562,0.58159778,1802.8,1802.7,1.02854906]
[1680457452170,0.58159778,1802.8,1802.7,1.86054906]
[1680457453264,1.45354115,1802.8,1802.7,1.86054906]
[1680457454971,0.58159778,1802.8,1802.7,1.86054906]
[1680457456565,0.58159778,1802.8,1802.7,5.36367394]
[1680457456874,0.58159778,1802.9,1802.8,0.00654078]
[1680457457075,0.58159778,1802.9,1802.8,2.70378909]
[1680457457374,0.58159778,1802.9,1802.8,1.70378909]
[1680457458677,0.58159778,1802.9,1802.8,3.82700316]
[1680457458869,0.58159778,1802.9,1802.8,2.66654078]
[1680457459174,0.58159778,1802.9,1802.8,2.5314455]
[1680457459364,0.58159778,1802.9,1802.8,1.66654078]
[1680457460172,0.58159778,1802.9,1802.8,2.53145849]
[1680457461876,0.57877921,1802.9,1802.8,2.53145849]
[1680457462976,0.57877921,1802.9,1802.8,2.8702887]
[1680457464877,0.57877921,1802.9,1802.8,3.8702887]
[1680457465178,0.57877921,1802.9,1802.8,2.8702887]
[1680457465370,0.87194337,1803.0,1802.8,2.8702887]
[1680457465569,0.87194337,1803.0,1802.9,1.40849285]
[1680457465874,1.87194337,1803.0,1802.9,0.57649285]
[1680457466574,0.87194337,1803.0,1802.9,0.57649285]
[1680457466770,1.87194337,1803.0,1802.9,0.57649285]
[1680457473579,1.87194337,1803.0,1802.8,1.78678155]
[1680457473777,4.07974337,1802.9,1802.8,0.92186384]
[1680457475677,4.91174337,1802.9,1802.8,0.92186384]
[1680457475984,7.02964828,1802.9,1802.8,0.05112708]
[1680457476285,1.0,1802.8,1802.5,0.57649285]
[1680457476480,4.0800825,1802.6,1802.5,0.57649285]
[1680457477284,0.8722825,1802.7,1802.5,1.40249285]
[1680457477480,0.8722825,1802.7,1802.5,1.52219196]
[1680457477687,0.8722825,1802.7,1802.5,2.38710967]
[1680457478482,0.8722825,1802.7,1802.5,1.52219196]
[1680457478681,0.8722825,1802.7,1802.5,2.38710967]
[1680457479088,0.8722825,1802.7,1802.6,1.83]
[1680457479489,0.8722825,1802.7,1802.6,1.96700349]
[1680457479786,0.8722825,1802.7,1802.6,0.96700349]
[1680457483291,4.0800825,1802.8,1802.6,0.96700349]
[1680457493693,3.2078,1802.8,1802.6,1.54349634]
[1680457493993,0.8722825,1802.9,1802.6,1.54349634]
[1680457494195,0.8722825,1802.9,1802.8,0.83]
[1680457494389,4.0800825,1803.0,1802.8,0.83]
[1680457494594,4.0800825,1803.0,1802.8,0.9668581]
[1680457497409,4.9120825,1803.0,1802.8,0.1368581]
[1680457497590,0.8722825,1802.9,1802.8,0.1368581]
[1680457497795,1.8722825,1802.9,1802.8,0.1368581]
[1680457497997,1.8722825,1802.9,1802.6,2.27341056]
[1680457498697,1.0,1802.7,1802.6,0.57649285]
[1680457498997,1.0,1802.7,1802.5,0.57649285]
[1680457499196,3.2078,1802.6,1802.4,2.27341056]
[1680457499396,1.0,1802.5,1802.4,1.40849285]
[1680457500194,3.2078,1802.6,1802.4,1.40849285]
[1680457501898,4.0328,1802.6,1802.4,0.57649285]
[1680457502203,1.0,1802.5,1802.4,0.57649285]
[1680457502498,1.0,1802.5,1802.3,0.57649285]
[1680457502701,3.2078,1802.4,1802.3,1.44141056]
[1680457502901,3.2078,1802.4,1802.3,0.57649285]
[1680457506106,3.27157677,1802.4,1802.3,0.57649285]
[1680457510810,4.38057677,1802.4,1802.1,0.57649285]
[1680457511008,4.48262685,1802.4,1802.1,0.57649285]
[1680457511706,5.35490935,1802.4,1802.1,0.57649285]
[1680457512909,4.48262685,1802.4,1802.0,2.55041056]
[1680457513107,3.2078,1802.2,1802.0,1.68549285]
[1680457513912,2.04505927,1802.4,1802.0,1.68549285]
[1680457514509,1.17277677,1802.4,1802.0,2.55041056]
[1680457514818,3.2078,1802.3,1802.0,1.68549285]
[1680457517910,1.109,1802.2,1802.0,0.57649285]
[1680457518118,2.109,1802.2,1802.0,0.57649285]
[1680457518614,2.109,1802.2,1801.9,1.44141056]
[1680457518801,2.109,1802.2,1801.9,0.57649285]
[1680457519405,3.2078,1802.1,1801.9,0.57649285]
[1680457523313,3.2078,1802.1,1801.8,0.57649285]
[1680457523520,3.2078,1802.1,1801.8,1.44141056]
[1680457524515,3.2078,1802.1,1801.8,0.57649285]
[1680457525013,0.21125721,1802.0,1801.8,0.57649285]
[1680457528320,3.2078,1801.9,1801.8,0.57649285]
[1680457528515,3.2078,1801.9,1801.7,3.07642815]
[1680457528716,0.21125721,1802.0,1801.9,1.0]
[1680457528912,0.8722825,1802.4,1801.9,6.4198]
[1680457529112,0.16008242,1802.0,1801.9,6.17471771]
[1680457529320,3.2078,1802.5,1801.9,7.27771771]
[1680457529516,3.2078,1802.5,1802.3,1.109]
[1680457531717,3.2078,1802.5,1802.1,1.103]
[1680457536518,0.13375598,1802.4,1802.1,1.103]
[1680457536724,1.13375598,1802.4,1802.1,1.103]
[1680457537626,0.13375598,1802.4,1802.1,1.103]
[1680457539231,0.13375598,1802.4,1802.1,1.67850211]
[1680457540741,0.13375598,1802.4,1802.1,4.88630211]
[1680457541029,2.9822825,1802.6,1802.1,4.88630211]
[1680457541219,1.00608953,1802.5,1802.1,5.75121982]
[1680457542219,4.21388953,1802.5,1802.1,4.88630211]